fUSD/lending_fUSD_20250308
["ID","MTS","AMOUNT","RATE_DAILY","PERIOD"]
[355689058,1741460055548,-500.0,9.847e-05,2]
[355689059,1741460055573,-500.0,9.847e-05,2]
[355689060,1741460055596,-1050.1,9.847e-05,2]
[355689061,1741460055619,-1637.51,9.847e-05,2]
[355689062,1741460055642,-500.0,9.847e-05,2]
[355689063,1741460055664,-500.0,9.847e-05,2]
[355689064,1741460055686,-500.0,9.847e-05,2]
[355689065,1741460055708,-573.67,9.847e-05,2]
[355689066,1741460055731,-622.92,9.847e-05,2]
[355689067,1741460055754,-729.89,9.847e-05,2]
[355689068,1741460055776,-500.0,9.847e-05,2]
[355689069,1741460055799,-1365.07,9.847e-05,2]
[355689070,1741460055821,-2866.47,9.847e-05,2]
[355689071,1741460055844,-1000.0,9.847e-05,2]
[355689072,1741460055868,-1000.0,9.9e-05,2]
[355689073,1741460055889,-2500.0,9.9e-05,2]
[355689074,1741460055911,-500.0,9.943e-05,2]
[355689075,1741460056249,-859.18,9.943e-05,2]
[355689076,1741460056272,-534.96,9.943e-05,2]
[355689077,1741460056294,-1445.49,9.943e-05,2]
[355689078,1741460056317,-500.0,9.943e-05,2]
[355689079,1741460056338,-2537.2,9.943e-05,2]
[355689080,1741460056360,-500.0,9.943e-05,2]
[355689081,1741460056382,-1240.47,9.943e-05,2]
[355689082,1741460056404,-598.74178017,9.943e-05,2]
[355689083,1741460056426,-500.0,9.943e-05,2]
[355689084,1741460056448,-500.0,9.943e-05,2]
[355689085,1741460056469,-500.0,9.943e-05,2]
[355689086,1741460056495,-500.0,9.943e-05,2]
[355689087,1741460056516,-500.0,9.943e-05,2]
[355689088,1741460056538,-464.97342522,9.943e-05,2]
[355689089,1741460056560,-500.0,9.943e-05,2]
[355689090,1741460056583,-611.34,9.943e-05,2]
[355689091,1741460056604,-500.0,9.943e-05,2]
[355689092,1741460056626,-500.0,9.943e-05,2]
[355689093,1741460056648,-500.0,9.943e-05,2]
[355689094,1741460056670,-500.0,9.943e-05,2]
[355689095,1741460056691,-2000.72,9.999e-05,2]
[355689096,1741460056713,-1310.9120015,9.999e-05,3]
[355689097,1741460056734,-500.0,9.999e-05,2]
[355689098,1741460056755,-885.08,9.999e-05,2]
[355689099,1741460056776,-500.0,9.999e-05,2]
[355689100,1741460056798,-500.0,9.999e-05,2]
[355689101,1741460056819,-886.95,9.999e-05,2]
[355689102,1741460056840,-500.0,9.999e-05,2]
[355689103,1741460056861,-1016.83,9.999e-05,2]
[355689104,1741460056882,-500.0,9.999e-05,2]
[355689105,1741460056904,-500.0,9.999e-05,2]
[355689106,1741460056928,-500.0,9.999e-05,2]
[355689107,1741460056970,500.0,9.847e-05,2]
[355689108,1741460057205,1783.36,9.299e-05,2]
[355689109,1741460057263,1783.36,9.573e-05,2]
[355689110,1741460057347,1783.36,9.847e-05,2]
[355689111,1741460057425,500.0,9.669e-05,2]
[355689112,1741460057867,591.12,9.299e-05,2]
[355689113,1741460058096,591.12,9.573e-05,2]
[355689114,1741460058178,500.0,9.999e-05,2]
[355689115,1741460058340,591.12,9.847e-05,2]
[355689116,1741460058401,500.0,9.669e-05,2]
[355689117,1741460058864,500.0,9.299e-05,2]
[355689118,1741460059226,500.0,9.573e-05,2]
[355689119,1741460059379,500.0,9.847e-05,2]
[355689120,1741460060393,500.0,9.669e-05,2]
[355689121,1741460060628,500.0,9.943e-05,2]
[355689122,1741460060697,662.94,9.299e-05,2]
[355689123,1741460060984,662.94,9.573e-05,2]
[355689124,1741460061232,662.94,9.847e-05,2]
[355689125,1741460061773,1891.36,9.299e-05,2]
[355689126,1741460062016,1891.36,9.573e-05,2]
[355689127,1741460062263,1891.36,9.847e-05,2]
[355689128,1741460065953,5000.0,9.9e-05,2]
[355689129,1741460068426,1281.85,9.299e-05,2]
[355689130,1741460068666,1281.85,9.573e-05,2]
[355689131,1741460068780,500.0,9.299e-05,2]
[355689132,1741460068911,1281.85,9.847e-05,2]
[355689133,1741460069024,500.0,9.573e-05,2]
[355689134,1741460069503,500.0,9.847e-05,2]
[355689135,1741460070989,645.06,9.299e-05,2]
[355689136,1741460071240,645.06,9.573e-05,2]
[355689137,1741460071472,645.06,9.847e-05,2]
[355689138,1741460072006,500.0,9.999e-05,2]
[355689139,1741460072740,500.0,9.669e-05,2]
[355689140,1741460073267,902.95,9.299e-05,2]
[355689141,1741460073511,902.95,9.573e-05,2]
[355689142,1741460073769,902.95,9.847e-05,2]
[355689143,1741460076510,500.0,9.669e-05,2]
[355689144,1741460076887,500.0,9.943e-05,2]
[355689145,1741460080007,500.0,9.999e-05,2]
[355689146,1741460083735,751.22,9.299e-05,2]
[355689147,1741460083975,751.22,9.573e-05,2]
[355689148,1741460084006,500.0,9.669e-05,2]
[355689149,1741460084220,751.22,9.847e-05,2]
[355689150,1741460085549,500.0,9.299e-05,2]
[355689151,1741460085777,500.0,9.573e-05,2]
[355689152,1741460086029,500.0,9.847e-05,2]
[355689153,1741460087046,1041.53,9.299e-05,2]
[355689154,1741460087308,1041.53,9.573e-05,2]
[355689155,1741460087558,1041.53,9.847e-05,2]
[355689156,1741460087733,500.0,9.669e-05,2]
[355689157,1741460087987,500.0,9.943e-05,2]
[355689158,1741460088181,500.0,9.299e-05,2]
[355689159,1741460088360,559.2,9.299e-05,2]
[355689160,1741460088430,500.0,9.573e-05,2]
[355689161,1741460088595,559.2,9.573e-05,2]
[355689162,1741460088666,500.0,9.847e-05,2]
[355689163,1741460088823,559.2,9.847e-05,2]
[355689164,1741460089700,586.54,9.299e-05,2]
[355689165,1741460090055,500.0,9.999e-05,2]
[355689166,1741460090110,586.54,9.573e-05,2]
[355689167,1741460090192,586.54,9.847e-05,2]
[355689168,1741460090594,353.39515578,9.299e-05,2]
[355689169,1741460093184,560.37,9.299e-05,2]
[355689170,1741460093491,560.37,9.573e-05,2]
[355689171,1741460093533,17595.0,9.191e-05,2]
[355689172,1741460093723,560.37,9.847e-05,2]
[355689173,1741460093759,527.74,9.191e-05,2]
[355689174,1741460096406,500.0,9.299e-05,2]
[355689175,1741460096586,500.0,9.573e-05,2]
[355689176,1741460096931,500.0,9.847e-05,2]
[355689177,1741460099698,513.19,9.299e-05,2]
[355689178,1741460099938,513.19,9.573e-05,2]
[355689179,1741460099993,500.0,9.669e-05,2]
[355689180,1741460100361,500.0,9.943e-05,2]
[355689181,1741460100466,513.19,9.847e-05,2]
[355689182,1741460101699,630.0,9.299e-05,2]
[355689183,1741460101933,630.0,9.573e-05,2]
[355689184,1741460101965,300.0,9.999e-05,2]
[355689185,1741460102549,630.0,9.847e-05,2]
[355689186,1741460103220,1122.11,9.999e-05,2]
[355689187,1741460104326,1100.54,9.299e-05,2]
[355689188,1741460104653,1100.54,9.573e-05,2]
[355689189,1741460104867,1100.54,9.847e-05,2]
[355689190,1741460106294,787.58,9.299e-05,2]
[355689191,1741460106584,357.83611193,9.573e-05,2]
[355689193,1741460189946,-1000.0,9.005e-05,2]
[355689194,1741460189968,-539.54,9.068e-05,2]
[355689195,1741460189995,-550.0,9.094e-05,2]
[355689196,1741460190019,-150.0,9.094e-05,2]
[355689197,1741460190042,-1304.45,9.094e-05,2]
[355689198,1741460190064,-2000.0,9.119e-05,2]
[355689199,1741460190088,-300.0,9.298e-05,2]
[355689200,1741460190115,-500.0,9.299e-05,2]
[355689201,1741460190139,-292.21667768,9.299e-05,2]
[355689202,1741460190163,-386.13249952,9.299e-05,2]
[355689203,1741460190188,-500.0,9.299e-05,2]
[355689204,1741460190211,-1325.03,9.299e-05,2]
[355689205,1741460190235,-963.35,9.299e-05,2]
[355689206,1741460190258,-911.11,9.299e-05,2]
[355689207,1741460190281,-1978.78,9.299e-05,2]
[355689208,1741460190303,-666.58,9.299e-05,2]
[355689209,1741460190326,-2325.77,9.299e-05,2]
[355689210,1741460190349,-687.51,9.299e-05,2]
[355689211,1741460190372,-1741.49,9.299e-05,2]
[355689212,1741460190395,-500.0,9.299e-05,2]
[355689213,1741460190419,-500.0,9.299e-05,2]
[355689214,1741460190441,-500.0,9.299e-05,2]
[355689215,1741460190464,-1193.48,9.299e-05,2]
[355689216,1741460190486,-500.0,9.299e-05,2]
[355689217,1741460190509,-2029.18,9.299e-05,2]
[355689218,1741460190534,-500.0,9.299e-05,2]
[355689219,1741460190557,-716.7,9.299e-05,2]
[355689220,1741460190580,-500.0,9.299e-05,2]
[355689221,1741460190604,-594.02,9.299e-05,2]
[355689222,1741460190631,-500.0,9.299e-05,2]
[355689223,1741460190654,-505.47,9.299e-05,2]
[355689224,1741460190678,-3540.88,9.299e-05,2]
[355689225,1741460190701,-500.0,9.299e-05,2]
[355689226,1741460190724,-623.71,9.299e-05,2]
[355689227,1741460190748,-500.0,9.299e-05,2]
[355689228,1741460190770,-550.0,9.346e-05,2]
[355689229,1741460190793,-150.0,9.346e-05,2]
[355689230,1741460190815,-1000.0,9.569e-05,2]
[355689231,1741460190838,-429.74388807,9.573e-05,2]
[355689232,1741460190862,-500.0,9.573e-05,2]
[355689233,1741460190885,-500.0,9.573e-05,2]
[355689234,1741460190907,-1325.03,9.573e-05,2]
[355689235,1741460190932,-963.35,9.573e-05,2]
[355689236,1741460190955,-911.11,9.573e-05,2]
[355689237,1741460190978,-1978.78,9.573e-05,2]
[355689238,1741460191000,-666.58,9.573e-05,2]
[355689239,1741460191027,-2325.77,9.573e-05,2]
[355689240,1741460191053,-687.51,9.573e-05,2]
[355689241,1741460191078,-1741.49,9.573e-05,2]
[355689242,1741460191103,-500.0,9.573e-05,2]
[355689243,1741460191129,-500.0,9.573e-05,2]
[355689244,1741460191154,-1193.48,9.573e-05,2]
[355689245,1741460191178,-500.0,9.573e-05,2]
[355689246,1741460191203,-2029.18,9.573e-05,2]
[355689247,1741460191226,-500.0,9.573e-05,2]
[355689248,1741460191250,-716.7,9.573e-05,2]
[355689249,1741460191274,-500.0,9.573e-05,2]
[355689250,1741460191297,-594.02,9.573e-05,2]
[355689251,1741460191321,-500.0,9.573e-05,2]
[355689252,1741460191344,-505.47,9.573e-05,2]
[355689253,1741460191369,-3540.88,9.573e-05,2]
[355689254,1741460191391,-500.0,9.573e-05,2]
[355689255,1741460191414,-623.71,9.573e-05,2]
[355689256,1741460191437,-500.0,9.573e-05,2]
[355689257,1741460191463,-500.0,9.669e-05,2]
[355689258,1741460191488,-500.0,9.747e-05,2]
[355689259,1741460191511,-787.58,9.847e-05,2]
[355689260,1741460191537,-500.0,9.847e-05,2]
[355689261,1741460191561,-500.0,9.847e-05,2]
[355689262,1741460191586,-1325.03,9.847e-05,2]
[355689263,1741460191611,-963.35,9.847e-05,2]
[355689264,1741460191633,-911.11,9.847e-05,2]
[355689265,1741460191665,-1978.78,9.847e-05,2]
[355689266,1741460191689,-666.58,9.847e-05,2]
[355689267,1741460191713,-2325.77,9.847e-05,2]
[355689268,1741460191736,-687.51,9.847e-05,2]
[355689269,1741460191762,-1741.49,9.847e-05,2]
[355689270,1741460191786,-500.0,9.847e-05,2]
[355689271,1741460191809,-500.0,9.847e-05,2]
[355689272,1741460191832,-1193.48,9.847e-05,2]
[355689273,1741460191855,-500.0,9.847e-05,2]
[355689274,1741460191878,-2029.18,9.847e-05,2]
[355689275,1741460191902,-500.0,9.847e-05,2]
[355689276,1741460191925,-716.7,9.847e-05,2]
[355689277,1741460191950,-500.0,9.847e-05,2]
[355689278,1741460191973,-594.02,9.847e-05,2]
[355689279,1741460191996,-500.0,9.847e-05,2]
[355689280,1741460192020,-505.47,9.847e-05,2]
[355689281,1741460192044,-3540.88,9.847e-05,2]
[355689282,1741460192067,-500.0,9.847e-05,2]
[355689283,1741460192090,-623.71,9.847e-05,2]
[355689284,1741460192112,-500.0,9.847e-05,2]
[355689285,1741460192134,-3971.82091687,9.907e-05,2]
[355689286,1741460192157,-3971.82091687,9.914e-05,2]
[355689287,1741460192180,-500.0,9.943e-05,2]
[355689288,1741460192203,-550.0,9.975e-05,2]
[355689289,1741460192227,-150.0,9.975e-05,2]
[355689290,1741460192250,-1620.69427277,9.979e-05,2]
[355689291,1741460192272,-500.0,9.999e-05,2]
[355689292,1741460192294,-298.7217127,9.999e-05,2]
[355689293,1741460192317,-200.0,9.999e-05,2]
[355689294,1741460192340,-500.0,9.999e-05,2]
[355689295,1741460192365,-500.0,9.999e-05,2]
[355689296,1741460192395,-649.79,9.999e-05,2]
[355689297,1741460192418,-518.47,9.999e-05,2]
[355689298,1741460192441,-500.0,9.999e-05,2]
[355689299,1741460192464,-500.0,9.999e-05,2]
[355689300,1741460192486,-500.0,9.999e-05,2]
[355689301,1741460192512,-500.0,9.999e-05,2]
[355689302,1741460192537,-848.2,9.999e-05,2]
[355689303,1741460192563,-500.0,9.999e-05,2]
[355689304,1741460192588,-500.0,9.999e-05,2]
[355689305,1741460192614,-412.65437251,9.999e-05,2]
[355689306,1741460192639,-285.91771574,9.999e-05,2]
[355689307,1741460192913,-2391.0,0.0001,2]
[355689308,1741460192935,-309.91744607,0.0001,2]
[355689309,1741460192959,-62672.1495812,0.0001,2]
[355689494,1741461031838,-1544.54,8.219e-05,2]
[355689495,1741461031847,-500.0,8.67e-05,2]
[355689496,1741461031858,-185.0,8.796e-05,2]
[355689497,1741461031868,-155.43281488,8.867e-05,2]
[355689498,1741461031877,-434.14,8.867e-05,2]
[355689499,1741461031887,-200.0,8.896e-05,2]
[355689500,1741461031896,-250.0,8.954e-05,2]
[355689501,1741461031904,-532.44,8.992e-05,2]
[355689502,1741461031912,-3901.11745264,9e-05,2]
[355689503,1741461031924,-2257.03968916,9e-05,2]
[355689504,1741461031971,-540.0,9e-05,2]
[355689505,1741461031982,-535.47,9e-05,2]
[355689506,1741461032055,-4844.38900129,9e-05,2]
[355689507,1741461032067,-35481.96627467,9e-05,2]
[355689508,1741461032078,-1707.93371666,9e-05,2]
[355689509,1741461032109,-2638.46326008,9e-05,2]
[355689510,1741461032126,-6325.54037415,9e-05,2]
[355689511,1741461032137,-298.695,9e-05,2]
[355689512,1741461032148,-295.49189213,9e-05,2]
[355689513,1741461032169,-4561.16061818,9e-05,2]
[355689514,1741461032181,-1885.6802487,9e-05,2]
[355689631,1741461037088,-1.1761192,9e-05,2]
[355689632,1741461037349,-1395.09553501,9e-05,2]
[355689633,1741461037361,-3934.6566725,9e-05,2]
[355689640,1741461038765,-500.0,8.999e-05,2]
[355689641,1741461038780,-356.14179852,8.999e-05,2]
[355689642,1741461038789,-500.0,8.999e-05,2]
[355689643,1741461038800,-2876.84347059,9e-05,2]
[355689644,1741461038826,-2401.88667965,9e-05,2]
[355689645,1741461038844,-2217.99999998,9e-05,2]
[355689646,1741461038857,-210972.12661967,9e-05,2]
[355689647,1741461038877,-9061.49703077,9e-05,2]
[355689648,1741461038890,-2854.40002,9e-05,2]
[355689649,1741461038901,-12945.25124714,9e-05,2]
[355689650,1741461038920,-603.465158,9e-05,2]
[355689651,1741461038931,-975.6839494,9e-05,2]
[355689652,1741461038943,-5668.8,9e-05,2]
[355689653,1741461038955,-240216.03837586,9e-05,2]
[355689654,1741461038968,-2025.44595638,9e-05,2]
[355689655,1741461038980,-4669.93291926,9e-05,2]
[355689656,1741461039000,-3156.42650307,9e-05,2]
[355689661,1741461039886,-4594.79109732,9e-05,2]
[355689662,1741461039942,-93120.13899874,9e-05,2]
[355689663,1741461039954,-91587.54498656,9e-05,2]
[355689664,1741461039966,-319.83586182,9e-05,2]
[355689665,1741461039976,-963.19752,9e-05,2]
[355689666,1741461040000,-966133.41006474,9e-05,2]
[355689667,1741461040010,-1036.4,9.046e-05,2]
[355689668,1741461040019,-155.43281487,9.284e-05,2]
[355689669,1741461040028,-150.0,9.298e-05,2]
[355689670,1741461040037,-500.0,9.299e-05,2]
[355689671,1741461040044,-319.96,9.299e-05,2]
[355689672,1741461040054,-500.0,9.299e-05,2]
[355689673,1741461040063,-500.0,9.299e-05,2]
[355689674,1741461040073,-462.71794077,9.299e-05,2]
[355689675,1741461040083,-500.0,9.299e-05,2]
[355689676,1741461040093,-500.0,9.299e-05,2]
[355689677,1741461040102,-500.0,9.299e-05,2]
[355689678,1741461040111,-500.0,9.299e-05,2]
[355689680,1741461040120,-500.0,9.299e-05,2]
[355689682,1741461040129,-500.0,9.299e-05,2]
[355689684,1741461040139,-500.0,9.299e-05,2]
[355689686,1741461040148,-560.4,9.299e-05,2]
[355689688,1741461040157,-500.0,9.299e-05,2]
[355689690,1741461040166,-500.0,9.299e-05,2]
[355689692,1741461040175,-500.0,9.299e-05,2]
[355689694,1741461040184,-500.0,9.299e-05,2]
[355689696,1741461040194,-500.0,9.299e-05,2]
[355689698,1741461040203,-500.0,9.299e-05,2]
[355689700,1741461040212,-500.0,9.299e-05,2]
[355689702,1741461040222,-500.0,9.299e-05,2]
[355689704,1741461040232,-500.0,9.299e-05,2]
[355689706,1741461040240,-500.0,9.299e-05,2]
[355689708,1741461040249,-300.0,9.3e-05,3]
[355689710,1741461040259,-600.0,9.4e-05,3]
[355689711,1741461040268,-900.0,9.5e-05,3]
[355689713,1741461040277,-150.0,9.562e-05,7]
[355689715,1741461040287,-500.0,9.573e-05,2]
[355689717,1741461040296,-500.0,9.573e-05,2]
[355689719,1741461040305,-500.0,9.573e-05,2]
[355689722,1741461040315,-500.0,9.573e-05,2]
[355689723,1741461040324,-500.0,9.573e-05,2]
[355689724,1741461040333,-500.0,9.573e-05,2]
[355689725,1741461040342,-159.49820968,9.573e-05,2]
[355689726,1741461040351,-500.0,9.573e-05,2]
[355689727,1741461040359,-500.0,9.573e-05,2]
[355689728,1741461040368,-500.0,9.573e-05,2]
[355689729,1741461040377,-560.4,9.573e-05,2]
[355689730,1741461040386,-500.0,9.573e-05,2]
[355689731,1741461040394,-500.0,9.573e-05,2]
[355689732,1741461040404,-500.0,9.573e-05,2]
[355689733,1741461040412,-500.0,9.573e-05,2]
[355689734,1741461040422,-500.0,9.573e-05,2]
[355689736,1741461040431,-500.0,9.573e-05,2]
[355689738,1741461040441,-500.0,9.573e-05,2]
[355689740,1741461040450,-500.0,9.573e-05,2]
[355689742,1741461040460,-500.0,9.573e-05,2]
[355689744,1741461040469,-500.0,9.573e-05,2]
[355689746,1741461040479,-1300.0,9.6e-05,3]
[355689748,1741461040487,-3185.34,9.67e-05,2]
[355689750,1741461040496,-21025.07,9.67e-05,2]
[355689752,1741461040506,-1600.0,9.7e-05,3]
[355689754,1741461040515,-155.43281487,9.7e-05,2]
[355689756,1741461040524,-150.0,9.736e-05,2]
[355689758,1741461040534,-13078.7035,9.747e-05,2]
[355689760,1741461040544,-285.0,9.753e-05,2]
[355689762,1741461040554,-2500.0,9.8e-05,2]
[355689764,1741461040563,-272.502929,9.8e-05,2]
[355689766,1741461040572,-160.531274,9.8e-05,2]
[355689768,1741461040582,-300.0,9.8e-05,3]
[355689770,1741461040591,-205.54,9.8e-05,2]
[355689772,1741461040600,-205.54,9.8e-05,2]
[355689774,1741461040610,-205.54,9.8e-05,2]
[355689776,1741461040619,-205.54,9.8e-05,2]
[355689778,1741461040629,-205.54,9.8e-05,2]
[355689780,1741461040638,-205.54,9.8e-05,2]
[355689782,1741461040647,-205.54,9.8e-05,2]
[355689784,1741461040656,-205.54,9.8e-05,2]
[355689786,1741461040665,-205.54,9.8e-05,2]
[355689788,1741461040675,-205.54,9.8e-05,2]
[355689790,1741461040684,-170.804,9.818e-05,2]
[355689792,1741461040693,-3311.674,9.818e-05,2]
[355689794,1741461040702,-221.88210339,9.847e-05,2]
[355689796,1741461040711,-410.6924159,9.847e-05,2]
[355689798,1741461040720,-500.0,9.847e-05,2]
[355689800,1741461040730,-500.0,9.847e-05,2]
[355689802,1741461040739,-500.0,9.847e-05,2]
[355689804,1741461040748,-500.0,9.847e-05,2]
[355689806,1741461040757,-500.0,9.847e-05,2]
[355689808,1741461040767,-500.0,9.847e-05,2]
[355689810,1741461040781,-560.4,9.847e-05,2]
[355689812,1741461040790,-500.0,9.847e-05,2]
[355689814,1741461040799,-151.93910598,9.847e-05,2]
[355689816,1741461040809,-500.0,9.847e-05,2]
[355689818,1741461040819,-500.0,9.847e-05,2]
[355689820,1741461040828,-500.0,9.847e-05,2]
[355689822,1741461040838,-500.0,9.847e-05,2]
[355689824,1741461040847,-500.0,9.847e-05,2]
[355689826,1741461040857,-500.0,9.847e-05,2]
[355689828,1741461040866,-500.0,9.847e-05,2]
[355689830,1741461040875,-160.71567911,9.873e-05,2]
[355689832,1741461040884,-500.0,9.873e-05,2]
[355689834,1741461040894,-160.27711165,9.873e-05,2]
[355689836,1741461040902,-160.27710477,9.873e-05,2]
[355689838,1741461040912,-160.24819076,9.873e-05,2]
[355689840,1741461040921,-164.25224615,9.873e-05,2]
[355689842,1741461040930,-564.42,9.899e-05,2]
[355689844,1741461040941,-500.0,9.899e-05,2]
[355689846,1741461040950,-500.0,9.899e-05,2]
[355689848,1741461040959,-500.0,9.899e-05,2]
[355689850,1741461040969,-1075.36,9.899e-05,2]
[355689852,1741461040978,-962.97,9.899e-05,2]
[355689854,1741461040987,-500.0,9.899e-05,2]
[355689856,1741461040996,-500.0,9.899e-05,2]
[355689858,1741461041005,-797.22,9.899e-05,2]
[355689860,1741461041015,-500.0,9.899e-05,2]
[355689862,1741461041024,-601.57,9.899e-05,2]
[355689864,1741461041033,-622.72,9.899e-05,2]
[355689866,1741461041043,-1523.8,9.899e-05,2]
[355689868,1741461041052,-549.53,9.899e-05,2]
[355689870,1741461041063,-1775.53,9.899e-05,2]
[355689872,1741461041072,-627.12,9.899e-05,2]
[355689874,1741461041081,-500.0,9.899e-05,2]
[355689876,1741461041090,-500.0,9.899e-05,2]
[355689878,1741461041100,-3098.27,9.899e-05,2]
[355689880,1741461041109,-500.0,9.899e-05,2]
[355689882,1741461041119,-500.0,9.899e-05,2]
[355689884,1741461041128,-812.86,9.899e-05,2]
[355689886,1741461041137,-500.0,9.899e-05,2]
[355689888,1741461041147,-631.9,9.899e-05,2]
[355689890,1741461041163,-683.07,9.899e-05,2]
[355689892,1741461041172,-751.34,9.899e-05,2]
[355689894,1741461041182,-793.36,9.899e-05,2]
[355689896,1741461041191,-639.75,9.899e-05,2]
[355689898,1741461041200,-500.0,9.899e-05,2]
[355689900,1741461041208,-268.07773555,9.899e-05,2]
[355689902,1741461041218,-849.99,9.899e-05,2]
[355689904,1741461041227,-972.69,9.899e-05,2]
[355689906,1741461041236,-936.63,9.899e-05,2]
[355689908,1741461041245,-670.16,9.899e-05,2]
[355689910,1741461041255,-500.0,9.899e-05,2]
[355689912,1741461041263,-1838.82,9.899e-05,2]
[355689914,1741461041272,-673.41,9.899e-05,2]
[355689916,1741461041282,-500.0,9.899e-05,2]
[355689918,1741461041291,-1022.88,9.899e-05,2]
[355689920,1741461041300,-963.44,9.899e-05,2]
[355689922,1741461041309,-2304.01,9.899e-05,2]
[355689924,1741461041318,-3692.39,9.899e-05,2]
[355689926,1741461041328,-500.0,9.899e-05,2]
[355689928,1741461041337,-500.0,9.899e-05,2]
[355689930,1741461041347,-500.0,9.899e-05,2]
[355689932,1741461041356,-500.0,9.899e-05,2]
[355689933,1741461041365,-503.82,9.899e-05,2]
[355689935,1741461041374,-529.28,9.899e-05,2]
[355689936,1741461041383,-1510.8,9.899e-05,2]
[355689938,1741461041392,-1654.94,9.899e-05,2]
[355689940,1741461041402,-500.0,9.899e-05,2]
[355689942,1741461041411,-500.0,9.899e-05,2]
[355689944,1741461041420,-2644.66,9.899e-05,2]
[355689946,1741461041430,-790.08,9.899e-05,2]
[355689948,1741461041439,-500.0,9.899e-05,2]
[355689950,1741461041448,-500.0,9.899e-05,2]
[355689952,1741461041457,-500.0,9.899e-05,2]
[355689954,1741461041467,-657.32,9.899e-05,2]
[355689956,1741461041476,-714.49,9.899e-05,2]
[355689958,1741461041485,-500.0,9.899e-05,2]
[355689960,1741461041494,-500.0,9.899e-05,2]
[355689962,1741461041504,-517.23,9.899e-05,2]
[355689964,1741461041513,-500.0,9.899e-05,2]
[355689966,1741461041522,-500.0,9.899e-05,2]
[355689968,1741461041532,-580.07,9.899e-05,2]
[355689970,1741461041541,-876.17,9.899e-05,2]
[355689972,1741461041550,-500.0,9.899e-05,2]
[355689974,1741461041559,-96805.096,9.9e-05,2]
[355689976,1741461041569,-4616.7826,9.9e-05,2]
[355689978,1741461041578,-9280.3599,9.9e-05,2]
[355689979,1741461041587,-5050.3343,9.9e-05,2]
[355689981,1741461041596,-1000.0,9.9e-05,2]
[355689983,1741461041605,-5000.0,9.9e-05,2]
[355689985,1741461041613,-272.502929,9.9e-05,3]
[355689987,1741461041623,-242132.62168648,9.9e-05,2]
[355689989,1741461041632,-300.0,9.9e-05,3]
[355689991,1741461041641,-162.25770135,9.9e-05,2]
[355689993,1741461041650,-162.25770135,9.95e-05,2]
[355689995,1741461041659,-500.0,9.972e-05,2]
[355689997,1741461041668,-500.0,9.972e-05,2]
[355689999,1741461041677,-500.0,9.972e-05,2]
[355690001,1741461041686,-403.54017779,9.972e-05,2]
[355690003,1741461041695,-500.0,9.972e-05,2]
[355690005,1741461041705,-500.0,9.972e-05,2]
[355690007,1741461041714,-240.1020957,9.972e-05,2]
[355690009,1741461041723,-500.0,9.972e-05,2]
[355690011,1741461041732,-500.0,9.972e-05,2]
[355690013,1741461041741,-500.0,9.972e-05,2]
[355690015,1741461041753,-500.0,9.972e-05,2]
[355690016,1741461041761,-500.0,9.972e-05,2]
[355690018,1741461041773,-500.0,9.972e-05,2]
[355690020,1741461041782,-500.0,9.972e-05,2]
[355690022,1741461041791,-500.0,9.972e-05,2]
[355690024,1741461041800,-500.0,9.972e-05,2]
[355690026,1741461041809,-536.70492808,9.972e-05,2]
[355690028,1741461041818,-500.0,9.972e-05,2]
[355690030,1741461041827,-500.0,9.972e-05,2]
[355690032,1741461041837,-500.0,9.972e-05,2]
[355690034,1741461041846,-500.0,9.972e-05,2]
[355690036,1741461041856,-337.003759,9.972e-05,2]
[355690037,1741461041867,-500.0,9.972e-05,2]
[355690039,1741461041877,-500.0,9.972e-05,2]
[355690041,1741461041886,-500.0,9.972e-05,2]